[Event "8th Amsterdam Summer Open-B 2018"]
[Site "Amsterdam"]
[Date "2018.07.09"]
[Round "3"]
[White "Hospes, Peter"]
[Black "Jansma, Dennis"]
[Result "1-0"]
[ECO "C23"]
[WhiteElo "1419"]
[BlackElo "1488"]
[Annotator "NA"]
[PlyCount "73"]
[EventDate "2018.07.07"]
[EventType "swiss"]
[EventCountry "NED"]
[SourceTitle "playchess.com"]
[Source "ChessBase"]
[SourceQuality "1"]
[TimeControl "40/5400+30:1800+30"]

1. e4 {[%emt 0:00:00]} e5 {[%emt 0:00:00]} 2. f4 {[%emt 0:00:08]} Nc6 {[%emt 0:00:00]} 3. Bc4 {[%emt 0:01:26]} Bc5 {[%emt 0:00:30]} 4. Nf3 {[%emt 0:03:16]} f5 {[%emt 0:00:24]} 5. Ng5 {[%emt 0:12:33]} exf4 {[%emt 0:04:22]} 6. Qh5+ {[%emt 0:04:51]} g6 {[%emt 0:00:21]} 7. Bf7+ {[%emt 0:02:54]} Kf8 {[%emt 0:00:48]} 8. Bxg6 {[%emt 0:08:37]} hxg6 {[%emt 0:00:47]} 9. Qxg6 {[%emt 0:04:32]} Qf6 {[%emt 0:07:55]} 10. Nh7+ {[%emt 0:06:58]} Rxh7 {[%emt 0:00:06]} 11. Qxh7 {[%emt 0:02:33]} Nd4 {[%emt 0:01:25]} 12. O-O {[%emt 0:17:26]} Nxc2+ {[%emt 0:02:19]} 13. Kh1 {[%emt 0:04:23]} Nxa1 {[%emt 0:02:24]} 14. Rxf4 {[%emt 0:03:38]} d6 {[%emt 0:01:34]} 15. Qxc7 {[%emt 0:10:14]} Bb6 {[%emt 0:01:05]} 16. Qc4 {[%emt 0:03:51]} Qd4 {[%emt 0:00:41]} 17. Qf1 {[%emt 0:00:58]} Qc5 {[%emt 0:01:24]} 18. Nc3 {[%emt 0:02:19]} Be6 {[%emt 0:01:06]} 19. exf5 {[%emt 0:00:58]} Bc4 {[%emt 0:00:09]} 20. Rxc4 {[%emt 0:02:58]} Qf2 {[%emt 0:01:57]} 21. Qxf2 {[%emt 0:00:37]} Bxf2 {[%emt 0:00:27]} 22. Nd5 {[%emt 0:01:04]} Re8 {[%emt 0:00:35]} 23. g3 {[%emt 0:00:42]} Re1+ {[%emt 0:01:21]} 24. Kg2 {[%emt 0:00:22]} Bc5 {[%emt 0:00:17]} 25. h4 {[%emt 0:01:09]} Rg1+ {[%emt 0:02:03]} 26. Kf3 {[%emt 0:00:24]} Rf1+ {[%emt 0:00:25]} 27. Ke4 {[%emt 0:00:28]} Nh6 {[%emt 0:01:53]} 28. d4 {[%emt 0:01:09]} b5 {[%emt 0:02:09]} 29. Bxh6+ {[%emt 0:00:45]} Kf7 {[%emt 0:00:32]} 30. Rc3 {[%emt 0:01:27]} Re1+ {[%emt 0:02:18]} 31. Re3 {[%emt 0:01:01]} Rxe3+ {[%emt 0:00:29]} 32. Bxe3 {[%emt 0:00:19]} Bb6 {[%emt 0:00:21]} 33. Kd3 {[%emt 0:00:18]} Bd8 {[%emt 0:04:46]} 34. b3 {[%emt 0:00:36]} Ba5 {[%emt 0:00:16]} 35. b4 {[%emt 0:00:13]} Bd8 {[%emt 0:00:12]} 36. Kc3 {[%emt 0:00:35]} a5 {[%emt 0:00:26]} 37. Kb2 {[%emt 0:00:27]} 1-0